bitfinex-derivatives/quotes_BTCF0:USTF0_20250327
["timestamp","ask_amount","ask_price","bid_price","bid_amount"]
[1743067304932,0.3818848,87500.0,87499.0,0.0704]
[1743067305641,0.4921648,87500.0,87499.0,0.0704]
[1743067310037,0.4920048,87500.0,87499.0,0.0704]
[1743067311638,0.3458848,87500.0,87499.0,0.0704]
[1743067311833,0.4214248,87500.0,87499.0,0.0704]
[1743067312938,0.4214248,87500.0,87499.0,0.1846733]
[1743067313336,0.47698928,87500.0,87499.0,0.1846733]
[1743067313538,0.47698928,87500.0,87499.0,0.0704]
[1743067313740,0.51164928,87500.0,87499.0,0.0704]
[1743067313938,0.54754928,87500.0,87499.0,0.0704]
[1743067315845,0.4919848,87500.0,87499.0,0.0704]
[1743067318449,0.49198476,87500.0,87499.0,0.0704]
[1743067322351,0.69712037,87500.0,87499.0,0.0704]
[1743067323840,1.05792037,87500.0,87499.0,0.0704]
[1743067324848,0.85278476,87500.0,87499.0,0.0704]
[1743067328750,0.85278476,87500.0,87499.0,0.1846733]
[1743067328949,0.74258476,87500.0,87499.0,0.1846733]
[1743067329150,0.18571591,87500.0,87499.0,0.1846733]
[1743067329343,0.17722861,87500.0,87499.0,0.19637082]
[1743067329545,0.17722861,87500.0,87499.0,0.19697082]
[1743067329546,0.00112001,87500.0,87499.0,0.19697082]
[1743067329741,0.4166,87507.0,87506.0,0.1142641]
[1743067329944,0.41772001,87507.0,87506.0,0.5857441]
[1743067330144,0.41772001,87507.0,87506.0,0.6235441]
[1743067330347,0.41772001,87507.0,87506.0,2.1235441]
[1743067330751,0.00112001,87507.0,87506.0,2.1235441]
[1743067330948,8e-05,87508.0,87507.0,0.1142628]
[1743067331251,8e-05,87508.0,87507.0,0.1148628]
[1743067331455,0.00120001,87508.0,87507.0,0.1489628]
[1743067331655,0.00120001,87508.0,87507.0,1.6489628]
[1743067331851,8e-05,87508.0,87507.0,1.6489628]
[1743067332150,8e-05,87508.0,87507.0,1.6519628]
[1743067332745,8e-05,87508.0,87507.0,1.7120628]
[1743067333549,8e-05,87508.0,87507.0,1.7140628]
[1743067333947,0.1143415,87508.0,87507.0,1.7140628]
[1743067334347,0.1143415,87508.0,87507.0,1.8242228]
[1743067334857,0.1503415,87508.0,87507.0,1.7140628]
[1743067335050,0.1503415,87508.0,87507.0,1.8242228]
[1743067335249,0.1503415,87508.0,87507.0,1.7140628]
[1743067335557,0.1503415,87508.0,87507.0,1.8242228]
[1743067335963,0.03608,87508.0,87507.0,1.8242228]
[1743067336557,0.1503415,87508.0,87507.0,1.8242228]
[1743067337456,0.1503415,87508.0,87507.0,2.1850228]
[1743067337854,0.1503415,87508.0,87507.0,2.1620228]
[1743067338258,0.1503415,87508.0,87507.0,2.0518628]
[1743067338563,0.1879415,87508.0,87507.0,0.5147628]
[1743067338756,0.18906151,87508.0,87507.0,0.5147628]
[1743067339160,0.1879415,87508.0,87507.0,0.5147628]
[1743067339954,0.19916524,87508.0,87507.0,0.5147628]
[1743067340150,0.19916524,87508.0,87507.0,0.5127628]
[1743067340359,0.19916524,87508.0,87507.0,0.5097628]
[1743067340758,0.1142733,87499.0,87496.0,0.00045716]
[1743067341063,0.1155933,87499.0,87498.0,0.32108919]
[1743067341258,0.1864933,87499.0,87498.0,0.32100919]
[1743067341457,0.1851733,87499.0,87498.0,0.20673459]
[1743067341661,0.1851733,87499.0,87498.0,0.32100919]
[1743067341855,0.1851733,87499.0,87498.0,0.32400919]
[1743067342058,0.1864933,87499.0,87498.0,0.1185946]
[1743067342252,0.5472933,87499.0,87498.0,0.00432]
[1743067342460,0.1142746,87498.0,87497.0,8e-05]
[1743067342665,0.1142759,87497.0,87496.0,0.00045716]
[1743067342863,0.1864959,87497.0,87496.0,0.00113716]
[1743067343568,0.1854959,87497.0,87496.0,0.00121716]
[1743067343958,0.2954959,87497.0,87496.0,0.00221716]
[1743067344157,0.2954959,87497.0,87496.0,0.00321716]
[1743067344666,0.2954959,87497.0,87496.0,0.00253716]
[1743067344872,0.2954959,87497.0,87496.0,0.00313716]
[1743067345555,0.2954959,87497.0,87496.0,0.00253716]
[1743067347957,0.6562959,87497.0,87496.0,0.00253716]
[1743067349465,0.6909959,87497.0,87496.0,0.00253716]
[1743067350466,0.3301959,87497.0,87496.0,0.00253716]
[1743067350658,0.6909959,87497.0,87496.0,0.00253716]
[1743067354869,0.3301959,87497.0,87496.0,0.00253716]
[1743067355068,0.6909959,87497.0,87496.0,0.00253716]
[1743067359579,0.3301959,87497.0,87496.0,0.00253716]
[1743067359775,0.6909959,87497.0,87496.0,0.00253716]
[1743067361686,0.3301959,87497.0,87496.0,0.00253716]
[1743067361879,0.6909959,87497.0,87496.0,0.00253716]
[1743067362276,0.5809959,87497.0,87496.0,0.11681436]
[1743067362482,0.5809959,87497.0,87496.0,0.00253716]
[1743067363775,0.5809959,87497.0,87496.0,0.00313716]
[1743067363974,0.5809959,87497.0,87496.0,0.00253716]
[1743067364178,0.5809959,87497.0,87496.0,0.00313716]
[1743067365584,0.5809959,87497.0,87496.0,0.00253716]
[1743067366584,0.5809959,87497.0,87496.0,0.00313716]
[1743067367785,0.5809959,87497.0,87496.0,0.00253716]
[1743067367986,0.5809959,87497.0,87493.0,8e-05]
[1743067367987,0.1142876,87488.0,87481.0,8e-05]
[1743067368196,0.4750915,87485.0,87484.0,0.0006]
[1743067368390,0.4750915,87485.0,87480.0,0.00045724]
[1743067368391,0.1142968,87481.0,87480.0,0.00045724]
[1743067368692,0.1156168,87481.0,87480.0,0.15133534]
[1743067368881,0.1868168,87481.0,87480.0,0.03703724]
[1743067369080,0.19448596,87481.0,87480.0,0.03703724]
[1743067369995,0.19448596,87481.0,87480.0,0.00613724]
[1743067370183,0.19448596,87481.0,87480.0,0.00945724]
[1743067370380,0.1143033,87476.0,87475.0,0.20541459]
[1743067370582,0.4764233,87476.0,87475.0,0.20601459]
[1743067370778,0.5480233,87476.0,87475.0,0.20601459]
[1743067370983,0.5839233,87476.0,87475.0,0.20601459]
[1743067371982,0.59064072,87476.0,87475.0,0.20601459]
[1743067372189,0.5849233,87476.0,87475.0,0.0006]
[1743067372382,0.1143072,87473.0,87472.0,0.03717139]
[1743067372581,0.11070721,87473.0,87472.0,0.03785139]
[1743067372788,0.54440721,87473.0,87472.0,0.03785139]
[1743067373486,0.54440721,87473.0,87472.0,0.00085139]
[1743067373791,0.54540721,87473.0,87472.0,0.11947989]
[1743067373992,0.54540721,87473.0,87472.0,0.15497989]
[1743067374181,0.54540721,87473.0,87472.0,0.07847139]
[1743067374380,0.54540721,87473.0,87472.0,0.07907139]
[1743067374778,0.54540721,87473.0,87472.0,0.07347139]
[1743067374994,0.54440721,87473.0,87472.0,0.19045989]
[1743067375784,0.54540721,87473.0,87472.0,0.19045989]
[1743067376389,0.11070721,87473.0,87472.0,0.19045989]
[1743067377087,0.11070721,87473.0,87472.0,1.69045989]
[1743067377387,0.1093072,87473.0,87472.0,1.69045989]
[1743067377594,0.1440072,87473.0,87472.0,1.69045989]
[1743067380687,0.1093072,87473.0,87472.0,1.69045989]
[1743067381687,0.1462072,87473.0,87472.0,1.69045989]
[1743067383088,0.14760721,87473.0,87472.0,1.69045989]
[1743067383491,0.11070721,87473.0,87472.0,1.69045989]
[1743067383987,0.14790721,87473.0,87472.0,1.69045989]
[1743067385001,0.18410721,87473.0,87472.0,1.69045989]
[1743067385798,0.07480001,87473.0,87472.0,1.69045989]
[1743067385998,0.3608,87490.0,87481.0,0.1142968]
[1743067386201,0.05698957,87482.0,87481.0,0.4756968]
[1743067386402,0.05698957,87482.0,87481.0,0.5486968]
[1743067386894,0.05698957,87482.0,87481.0,2.0486968]
[1743067387096,0.05610956,87482.0,87481.0,2.06042637]
[1743067387491,0.05610956,87482.0,87481.0,2.06142637]
[1743067389707,0.05610956,87482.0,87481.0,1.70062637]
[1743067389888,0.05610956,87482.0,87481.0,2.06142637]
[1743067390903,0.20567288,87488.0,87487.0,0.1142889]
[1743067390904,0.1490876,87488.0,87487.0,0.1142889]
[1743067391103,0.1490876,87488.0,87487.0,0.1149289]
[1743067391297,0.14996761,87488.0,87487.0,0.1866289]
[1743067391598,0.14996761,87488.0,87487.0,1.6866289]
[1743067391808,0.1845876,87488.0,87487.0,1.6866289]
[1743067395794,0.1845876,87488.0,87487.0,1.6876289]
[1743067398804,0.1845876,87488.0,87487.0,0.1500289]
[1743067398994,0.1855076,87488.0,87487.0,0.1500289]
[1743067399695,0.5453876,87488.0,87487.0,0.00164]
[1743067399896,0.54626761,87488.0,87487.0,0.001]
[1743067400104,0.1704366,87486.0,87485.0,0.1142911]
[1743067400310,0.17131661,87486.0,87485.0,0.1149711]
[1743067401901,0.25122847,87486.0,87485.0,0.00068]
[1743067402107,0.1142915,87485.0,87484.0,8e-05]
[1743067402402,0.11517151,87485.0,87484.0,8e-05]
[1743067402602,0.18357151,87485.0,87484.0,0.00104]
[1743067403006,0.18357151,87485.0,87484.0,8e-05]
[1743067403513,0.18357151,87485.0,87484.0,0.00072]
[1743067403812,0.18757151,87485.0,87484.0,0.00072]
[1743067404209,0.18757151,87485.0,87484.0,8e-05]
[1743067406104,0.18757151,87485.0,87484.0,0.00076]
[1743067407005,0.18757151,87485.0,87484.0,8e-05]
[1743067408215,0.18757151,87485.0,87484.0,0.00072]
[1743067408515,0.18757151,87485.0,87484.0,8e-05]
[1743067408516,0.54837151,87485.0,87484.0,8e-05]
[1743067409616,0.18757151,87485.0,87484.0,8e-05]
[1743067409803,0.54837151,87485.0,87484.0,0.00096]
[1743067410411,0.54837151,87485.0,87484.0,8e-05]
[1743067412411,0.18757151,87485.0,87484.0,8e-05]
[1743067412611,0.54837151,87485.0,87484.0,8e-05]
[1743067413622,0.18757151,87485.0,87484.0,8e-05]
[1743067413818,0.54837151,87485.0,87484.0,0.00068]
[1743067414013,0.54837151,87485.0,87484.0,8e-05]
[1743067414804,0.18757151,87485.0,87484.0,8e-05]
[1743067415010,0.54837151,87485.0,87484.0,0.00076]
[1743067415209,0.54837151,87485.0,87484.0,8e-05]
[1743067415410,0.54837151,87485.0,87484.0,0.00096]
[1743067416519,0.54837151,87485.0,87484.0,8e-05]
[1743067416719,0.54837151,87485.0,87484.0,0.00076]
[1743067416909,0.54837151,87485.0,87484.0,8e-05]
[1743067417321,0.54837151,87485.0,87484.0,0.00068]
[1743067417815,0.54837151,87485.0,87484.0,8e-05]
[1743067421228,0.5540885,87485.0,87484.0,8e-05]
[1743067422621,0.1932885,87485.0,87484.0,8e-05]
[1743067422925,0.5540885,87485.0,87484.0,0.00068]
[1743067423124,0.5540885,87485.0,87484.0,8e-05]
[1743067423424,0.5540885,87485.0,87484.0,0.00076]
[1743067424118,0.5540885,87485.0,87484.0,8e-05]
[1743067424317,0.1143072,87473.0,87472.0,0.00017139]
[1743067424519,0.11518721,87473.0,87472.0,0.00017139]
[1743067424717,0.21648721,87473.0,87472.0,0.00077139]
[1743067425123,0.21648721,87473.0,87472.0,0.00017139]
[1743067426023,0.21648721,87473.0,87472.0,0.00077139]
[1743067426630,0.21648721,87473.0,87472.0,0.00017139]
[1743067427018,0.21648721,87473.0,87472.0,0.00113139]
[1743067427330,0.21648721,87473.0,87472.0,0.03303139]
[1743067427526,0.21648721,87473.0,87472.0,0.03267139]
[1743067427729,0.58864213,87473.0,87472.0,0.03267139]
[1743067427926,0.58864213,87473.0,87472.0,0.03207139]
[1743067428124,0.58864213,87473.0,87472.0,0.03267139]
[1743067430022,0.58864213,87473.0,87472.0,0.03207139]
[1743067430720,0.58864213,87473.0,87472.0,0.03275139]
[1743067430921,0.58864213,87473.0,87472.0,0.14705989]
[1743067431325,0.58864213,87473.0,87472.0,0.18325989]
[1743067432431,0.58864213,87473.0,87472.0,0.06895139]
[1743067432827,0.58864213,87473.0,87472.0,0.18325989]
[1743067433035,0.57728721,87473.0,87472.0,0.18325989]
[1743067433235,0.57728721,87473.0,87472.0,0.06895139]
[1743067435035,0.57728721,87473.0,87472.0,0.18325989]
[1743067436938,0.57728721,87473.0,87472.0,0.06895139]
[1743067437737,0.57728721,87473.0,87472.0,0.03207139]
[1743067437938,0.57728721,87473.0,87472.0,0.03267139]
[1743067438230,0.57728721,87473.0,87472.0,0.00077139]
[1743067439138,0.57728721,87473.0,87472.0,0.00017139]
[1743067439437,0.58300472,87473.0,87472.0,0.00017139]
[1743067439625,0.1143138,87468.0,87467.0,8e-05]
[1743067439833,0.1143177,87465.0,87464.0,0.00045733]
[1743067440028,0.48171581,87465.0,87464.0,0.00133733]
[1743067440233,0.54951581,87465.0,87464.0,0.00045733]
[1743067441333,0.54951605,87465.0,87464.0,0.00045733]
[1743067442733,0.58181605,87465.0,87464.0,0.00045733]
[1743067444337,0.57609771,87465.0,87464.0,0.00045733]
[1743067446646,0.58181605,87465.0,87464.0,0.00045733]
[1743067446945,0.57609771,87465.0,87464.0,0.00045733]
[1743067447338,0.58181607,87465.0,87464.0,0.00045733]
[1743067449136,0.57609771,87465.0,87464.0,0.00045733]
[1743067449337,0.58181607,87465.0,87464.0,0.00045733]
[1743067451040,0.57609771,87465.0,87464.0,0.00045733]
[1743067451245,0.58181607,87465.0,87464.0,0.00045733]
[1743067452138,0.57609771,87465.0,87464.0,0.00045733]
[1743067452335,0.57609771,87465.0,87464.0,0.11477633]
[1743067452336,0.03618001,87465.0,87464.0,0.11477633]
[1743067452637,0.00088001,87465.0,87464.0,0.12688731]
[1743067452954,0.00088001,87465.0,87464.0,1.69448731]
[1743067453141,0.1143177,87465.0,87464.0,1.75164671]
[1743067454639,0.17051578,87466.0,87465.0,0.1143177]
[1743067454846,0.17143578,87466.0,87465.0,0.1825577]
[1743067455149,0.28571219,87466.0,87465.0,0.1825577]
[1743067455450,0.28571219,87466.0,87465.0,1.6825577]
[1743067456055,0.00088001,87466.0,87465.0,1.6825577]
[1743067456344,0.0571565,87469.0,87468.0,0.1143138]
[1743067456645,0.0571565,87469.0,87468.0,0.1149138]
[1743067456851,0.05811651,87469.0,87468.0,0.1844138]
[1743067457041,0.05811651,87469.0,87468.0,1.6844138]
[1743067457246,0.0571565,87469.0,87468.0,1.6844138]
[1743067459351,0.1508111,87471.0,87470.0,0.1143111]
[1743067459547,0.1508111,87471.0,87470.0,0.1149111]
[1743067459748,0.1487049,87475.0,87474.0,0.1143059]
[1743067459940,0.1364763,87480.0,87479.0,0.1142994]
[1743067460348,0.13735631,87480.0,87479.0,0.1790994]
[1743067460650,0.1364763,87480.0,87479.0,0.1790994]
[1743067460841,0.1373963,87480.0,87479.0,0.1790994]
[1743067462051,0.1364763,87480.0,87479.0,0.1790994]
[1743067462250,0.1374763,87480.0,87479.0,0.1790994]
[1743067462446,0.1384763,87480.0,87479.0,0.1790994]
[1743067462852,0.002,87480.0,87479.0,0.1790994]
[1743067463052,0.001,87480.0,87479.0,0.1790994]
[1743067463655,0.00017139,87489.0,87488.0,0.1142876]
[1743067463948,0.00017139,87489.0,87488.0,0.5855676]
[1743067463949,0.00109139,87489.0,87488.0,0.5855676]
[1743067464140,0.00017139,87489.0,87488.0,0.5855676]
[1743067464342,0.00017139,87489.0,87488.0,0.6530676]
[1743067464954,0.00117139,87489.0,87488.0,0.6530676]
[1743067466358,0.00217139,87489.0,87488.0,0.6530676]
[1743067466742,0.00217139,87489.0,87488.0,0.7530676]
[1743067467352,0.00217139,87489.0,87488.0,0.9030676]
[1743067467353,9e-08,87489.0,87488.0,0.9030676]
[1743067470847,9e-08,87489.0,87488.0,0.9029476]
[1743067473553,0.00017149,87497.0,87496.0,0.1142772]
[1743067473752,0.00017149,87497.0,87496.0,0.4750772]
[1743067474062,0.00017149,87497.0,87496.0,0.5419772]
[1743067474260,0.00017149,87497.0,87496.0,0.5425772]
[1743067474849,9e-08,87497.0,87496.0,0.70118026]
[1743067475055,6.851e-05,87508.0,87497.0,0.0571378]
[1743067475259,0.0571139,87534.0,87519.0,0.1142471]
[1743067475260,0.0653,87520.0,87519.0,0.1142471]
[1743067475559,0.0973,87520.0,87519.0,0.5856471]
[1743067475948,0.0973,87520.0,87519.0,0.6546471]
[1743067476163,0.09818001,87520.0,87519.0,0.6546471]
[1743067476565,0.10318001,87520.0,87519.0,0.6546471]
[1743067476965,0.1023,87520.0,87519.0,0.6546471]
[1743067477263,0.10326001,87520.0,87519.0,0.6546471]
[1743067477870,0.10826001,87520.0,87519.0,0.6316648]
[1743067478962,0.1073,87520.0,87519.0,0.6316648]
[1743067479165,0.10818001,87520.0,87519.0,0.6316648]
[1743067479863,0.10818001,87520.0,87519.0,0.6315848]
[1743067480864,0.22242581,87520.0,87519.0,0.5967848]
[1743067481265,0.22242581,87520.0,87519.0,0.4756871]
[1743067489275,0.22242581,87520.0,87519.0,0.1148871]
[1743067493574,0.22242581,87520.0,87519.0,1.6148871]
[1743067493776,0.2215458,87520.0,87519.0,1.6148871]
[1743067506390,0.2215458,87520.0,87519.0,0.00064]
[1743067506591,0.22813987,87520.0,87519.0,0.00064]
[1743067506783,0.22813996,87520.0,87519.0,0.00064]
[1743067507183,0.22725995,87520.0,87519.0,0.00064]
[1743067507393,0.2215458,87520.0,87519.0,0.1148871]
[1743067507594,0.22242581,87520.0,87519.0,0.1148871]
[1743067508083,0.2224658,87520.0,87519.0,0.1148871]
[1743067508484,0.2215458,87520.0,87519.0,0.1148871]
[1743067509490,0.22242581,87520.0,87519.0,0.1148871]
[1743067521599,0.22242581,87520.0,87519.0,0.00064]
[1743067523092,0.22242581,87520.0,87519.0,0.1148871]
[1743067523303,0.22242581,87520.0,87519.0,0.00064]
[1743067524397,0.22242581,87520.0,87519.0,0.1148871]
[1743067526197,0.22242581,87520.0,87519.0,0.00064]
[1743067526906,0.22242581,87520.0,87519.0,0.1148871]
[1743067527698,0.22242581,87520.0,87519.0,0.00064]
[1743067528006,0.1142563,87512.0,87511.0,0.11442819]
[1743067528309,0.4759763,87512.0,87511.0,0.00085149]
[1743067528510,0.5742763,87512.0,87511.0,0.00085149]
[1743067529198,0.57999121,87512.0,87511.0,0.00085149]
[1743067529399,0.5742763,87512.0,87511.0,0.00085149]
[1743067529601,0.5782763,87512.0,87511.0,0.00085149]
[1743067529998,0.1142602,87509.0,87508.0,0.20541459]
[1743067530208,0.12109517,87509.0,87508.0,0.20601459]
[1743067530408,0.18689517,87509.0,87508.0,0.20601459]
[1743067530910,0.1981389,87509.0,87508.0,0.20601459]
[1743067531204,0.19813913,87509.0,87508.0,0.20601459]
[1743067531506,0.19542394,87509.0,87508.0,0.20601459]
[1743067531903,0.19542394,87509.0,87508.0,0.0006]
[1743067532099,0.114268,87503.0,87502.0,0.1142686]
[1743067532307,0.11546801,87503.0,87502.0,0.1149486]
[1743067532503,0.18116801,87503.0,87502.0,0.1149486]
[1743067532908,0.18116801,87503.0,87502.0,0.1460486]
[1743067533316,0.21426801,87503.0,87502.0,0.1460486]
[1743067534112,0.21626801,87503.0,87502.0,0.1460486]
[1743067534515,0.21826801,87503.0,87502.0,0.1460486]
[1743067538512,0.21866801,87503.0,87502.0,0.1460486]
[1743067539616,0.21866801,87503.0,87502.0,0.14646009]
[1743067543016,0.21826801,87503.0,87502.0,0.14646009]
[1743067543408,0.21826801,87503.0,87502.0,0.1460486]
[1743067543612,0.21866801,87503.0,87502.0,0.1460486]
[1743067543808,0.21866801,87503.0,87502.0,0.14646009]
[1743067545119,0.21866801,87503.0,87502.0,0.00109149]
[1743067545318,0.21866801,87503.0,87502.0,0.00041149]
[1743067545911,0.22438374,87503.0,87502.0,0.00041149]
[1743067546311,0.21866801,87503.0,87502.0,0.00041149]
[1743067546518,0.22438376,87503.0,87502.0,0.00041149]
[1743067546819,0.22338376,87503.0,87502.0,0.00041149]
[1743067547212,0.22038376,87503.0,87502.0,0.00041149]
[1743067547419,0.22338376,87503.0,87502.0,0.00041149]
[1743067548016,0.22198376,87503.0,87502.0,0.00041149]
[1743067548332,0.1142706,87501.0,87500.0,0.00017149]
[1743067548517,0.48194635,87501.0,87500.0,0.00017149]
[1743067548714,0.51534635,87501.0,87500.0,0.00017149]
[1743067548913,0.54664635,87501.0,87500.0,0.00058298]
[1743067549323,0.54664635,87501.0,87500.0,0.00118298]
[1743067549524,0.54664635,87501.0,87500.0,0.00058298]
[1743067549917,0.54764635,87501.0,87500.0,0.00058298]
[1743067550525,0.54864635,87501.0,87500.0,0.00058298]
[1743067550822,0.18784635,87501.0,87500.0,0.00058298]
[1743067551023,0.5429306,87501.0,87500.0,0.00058298]
[1743067551714,0.6525306,87501.0,87500.0,0.00058298]
[1743067552224,0.6582466,87501.0,87500.0,0.00058298]
[1743067553417,0.6582466,87501.0,87500.0,0.00017149]
[1743067553617,0.6586466,87501.0,87500.0,0.00017149]
[1743067554126,0.2978466,87501.0,87500.0,0.00017149]
[1743067554325,0.6586466,87501.0,87500.0,0.00058298]
[1743067555833,0.65864669,87501.0,87500.0,0.00058298]
[1743067558026,0.65824669,87501.0,87500.0,0.00058298]
[1743067558527,0.6529306,87501.0,87500.0,0.00017149]
[1743067558728,0.6529306,87501.0,87500.0,0.00058298]
[1743067558930,0.65864668,87501.0,87500.0,0.00058298]
[1743067559225,0.6529306,87501.0,87500.0,0.00058298]
[1743067559428,0.65864667,87501.0,87500.0,0.00058298]
[1743067560815,0.6529306,87501.0,87500.0,0.00058298]
[1743067563024,0.6525306,87501.0,87500.0,0.00058298]
[1743067563222,0.65824669,87501.0,87500.0,0.00017149]
[1743067563732,0.65864669,87501.0,87500.0,0.00058298]
[1743067567625,0.54904669,87501.0,87500.0,0.00058298]
[1743067567830,0.5120306,87501.0,87500.0,0.00058298]
[1743067568040,0.5120306,87501.0,87500.0,0.00122298]
[1743067568634,0.5116306,87501.0,87500.0,0.00122298]
[1743067568941,0.5116306,87501.0,87500.0,0.00081149]
[1743067569231,0.5120306,87501.0,87500.0,0.14554339]
[1743067569436,0.5120306,87501.0,87500.0,0.14655488]
[1743067569631,0.5120306,87501.0,87500.0,0.17955488]
[1743067571334,0.5120306,87501.0,87500.0,0.19089305]
[1743067571843,0.4786306,87501.0,87500.0,0.19089305]
[1743067572031,0.5115306,87501.0,87500.0,0.19089305]
[1743067573142,0.5111306,87501.0,87500.0,0.19089305]
[1743067573339,0.5111306,87501.0,87500.0,0.19048156]
[1743067573540,0.5115306,87501.0,87500.0,0.19048156]
[1743067573838,0.5115306,87501.0,87500.0,0.19089305]
[1743067574137,0.5115306,87501.0,87500.0,0.17955488]
[1743067575040,0.5115306,87501.0,87500.0,0.06528298]
[1743067575539,0.5425306,87501.0,87500.0,0.06468298]
[1743067576241,0.5425306,87501.0,87500.0,0.06528298]
[1743067576839,0.5425306,87501.0,87500.0,0.17955488]
[1743067578141,0.5421306,87501.0,87500.0,0.17955488]
[1743067578446,0.5421306,87501.0,87500.0,0.17914339]
[1743067578631,0.5425306,87501.0,87500.0,0.17914339]
[1743067578831,0.5425306,87501.0,87500.0,0.17955488]
[1743067579635,0.5115306,87501.0,87500.0,0.17955488]
[1743067580134,0.4786306,87501.0,87500.0,0.17955488]
[1743067580745,0.5110306,87501.0,87500.0,0.17955488]
[1743067580944,0.1502306,87501.0,87500.0,0.17955488]
[1743067583140,0.1498306,87501.0,87500.0,0.17955488]
[1743067583347,0.1498306,87501.0,87500.0,0.17914339]
[1743067583550,0.1502306,87501.0,87500.0,0.17914339]
[1743067583835,0.1502306,87501.0,87500.0,0.17955488]
[1743067586048,0.1837306,87501.0,87500.0,0.17955488]
[1743067586650,0.1837306,87501.0,87500.0,0.54035488]
[1743067586651,0.03596,87501.0,87500.0,0.54035488]
[1743067587354,0.1502306,87501.0,87500.0,2.04035488]
[1743067587545,0.1490706,87501.0,87500.0,2.04035488]
[1743067587851,0.0348,87501.0,87500.0,2.04035488]
[1743067588050,0.0344,87501.0,87500.0,2.04035488]
[1743067588250,0.0344,87501.0,87500.0,2.03994339]
[1743067588451,0.0348,87501.0,87500.0,2.03994339]
[1743067589249,0.0348,87501.0,87500.0,2.04035488]
[1743067591951,0.0348,87501.0,87500.0,0.54035488]
[1743067592254,0.03592001,87501.0,87500.0,0.54035488]
[1743067592554,0.0348,87501.0,87500.0,0.54035488]
[1743067593147,0.0344,87501.0,87500.0,0.17955488]
[1743067593448,0.0344,87501.0,87500.0,0.17914339]
[1743067593644,0.0348,87501.0,87500.0,0.17914339]
[1743067593849,0.0348,87501.0,87500.0,0.17955488]
[1743067594047,0.03592001,87501.0,87500.0,1.67955488]
[1743067594246,0.13670521,87506.0,87500.0,1.67955488]
[1743067594247,8e-05,87503.0,87502.0,0.1142693]
[1743067594452,0.10393891,87506.0,87505.0,0.1142654]
[1743067594651,0.10505892,87506.0,87505.0,0.1148654]
[1743067594853,0.10389892,87506.0,87505.0,1.6148654]
[1743067595049,0.0336,87515.0,87506.0,0.1142641]
[1743067595050,0.10277891,87507.0,87506.0,0.1142641]
[1743067595256,0.10277891,87507.0,87506.0,0.1148641]
[1743067596743,0.10577891,87507.0,87506.0,0.1148641]
[1743067596954,0.22204171,87507.0,87506.0,0.1148641]
[1743067597160,0.25544171,87507.0,87506.0,0.1148641]
[1743067597456,0.25656172,87507.0,87506.0,0.1148641]
[1743067597847,0.28644171,87507.0,87506.0,0.1148641]
[1743067598247,0.1836628,87507.0,87506.0,0.1148641]
[1743067598661,0.0694,87507.0,87506.0,0.1148641]
[1743067601462,0.1836628,87507.0,87506.0,0.1148641]
[1743067603152,0.1836628,87507.0,87506.0,0.0006]
[1743067603355,0.1142693,87502.0,87500.0,0.00058298]
[1743067603658,0.1155493,87502.0,87501.0,0.20601459]
[1743067603858,0.1786693,87502.0,87501.0,0.32028519]
[1743067604664,0.1806693,87502.0,87501.0,0.32028519]
[1743067605161,0.1806693,87502.0,87501.0,0.20601459]
[1743067605956,0.5427493,87502.0,87501.0,0.20601459]
[1743067606161,0.54846514,87502.0,87501.0,0.20601459]
[1743067606465,0.54746514,87502.0,87501.0,0.0006]
[1743067606657,0.54746514,87502.0,87500.0,0.00058298]
[1743067606658,0.1142706,87501.0,87500.0,0.00058298]
[1743067606963,0.51446644,87501.0,87500.0,0.00058298]
[1743067607159,0.57916644,87501.0,87500.0,0.00058298]
[1743067608959,0.58016644,87501.0,87500.0,0.00058298]
[1743067609263,0.58116644,87501.0,87500.0,0.00058298]
[1743067609467,0.69080644,87501.0,87500.0,0.00058298]
[1743067612266,0.86135049,87501.0,87500.0,0.00058298]
[1743067614364,0.85563465,87501.0,87500.0,0.00058298]
[1743067615472,0.49483465,87501.0,87500.0,0.00058298]
[1743067615673,0.85563465,87501.0,87500.0,0.00058298]
[1743067618067,0.86135078,87501.0,87500.0,0.00058298]
[1743067618570,0.86135087,87501.0,87500.0,0.00058298]
[1743067619159,0.8613509,87501.0,87500.0,0.00058298]
[1743067619366,0.85563465,87501.0,87500.0,0.00058298]
[1743067619764,0.86135091,87501.0,87500.0,0.00058298]
[1743067620072,0.85563465,87501.0,87500.0,0.00058298]
[1743067621071,0.86135084,87501.0,87500.0,0.00058298]
[1743067621368,0.6850906,87501.0,87500.0,0.00058298]
[1743067624364,0.6850506,87501.0,87500.0,0.00058298]
[1743067624565,0.46118,87501.0,87500.0,0.11485488]
[1743067624773,0.5754506,87501.0,87500.0,0.11485488]
[1743067624971,0.5754506,87501.0,87500.0,0.17939488]
[1743067625176,0.5450506,87501.0,87500.0,0.18007488]
[1743067625567,0.5450506,87501.0,87500.0,0.17943488]
[1743067626163,0.5450506,87501.0,87500.0,0.19085933]
[1743067626773,0.36408,87501.0,87500.0,0.19085933]
[1743067627479,0.4783506,87501.0,87500.0,0.19085933]
[1743067628476,0.1175506,87501.0,87500.0,0.19085933]
[1743067628676,0.1486506,87501.0,87500.0,0.19085933]
[1743067635386,0.00328,87501.0,87500.0,0.19085933]
[1743067636978,0.002,87501.0,87500.0,0.19085933]
[1743067637174,0.002,87501.0,87500.0,1.69085933]
[1743067640395,0.002,87501.0,87500.0,2.05165933]
[1743067648998,0.002,87501.0,87500.0,2.16121933]
[1743067649599,0.0657,87501.0,87500.0,2.16121933]
[1743067659014,0.0657,87501.0,87500.0,2.29368013]
[1743067659313,0.0657,87501.0,87500.0,2.37124013]
[1743067661396,0.0657,87501.0,87500.0,2.01044013]
[1743067661704,0.0657,87501.0,87500.0,2.37124013]
[1743067662613,0.0657,87501.0,87500.0,2.09751933]
[1743067663410,0.0657,87501.0,87500.0,1.98775933]
[1743067664310,0.1799706,87501.0,87500.0,1.98775933]
[1743067664702,0.2126706,87501.0,87500.0,1.98775933]
[1743067666007,0.2126706,87501.0,87500.0,1.97633488]
[1743067666710,0.2126706,87501.0,87500.0,1.61553488]
[1743067667515,0.5734706,87501.0,87500.0,0.00126298]
[1743067667714,0.5748306,87501.0,87500.0,0.11553488]
[1743067670916,0.5748306,87501.0,87500.0,0.11485488]
[1743067674507,0.5748306,87501.0,87500.0,0.11553488]
[1743067674702,0.5748306,87501.0,87500.0,0.11485488]
[1743067676011,0.2140306,87501.0,87500.0,0.11485488]
[1743067677110,0.2140306,87501.0,87500.0,0.11545488]
[1743067677312,0.2140306,87501.0,87500.0,0.11485488]
[1743067678516,0.2140306,87501.0,87500.0,0.11545488]
[1743067686524,0.09976,87501.0,87500.0,0.11545488]
[1743067686717,0.09976,87501.0,87500.0,0.17805488]
[1743067687619,0.2140306,87501.0,87500.0,0.17805488]
[1743067687924,0.2140306,87501.0,87500.0,1.67805488]
[1743067688327,0.2140306,87501.0,87500.0,1.64625488]
[1743067689726,0.2140306,87501.0,87500.0,0.11545488]
[1743067693722,0.2140306,87501.0,87500.0,0.00118298]
[1743067693922,0.2140306,87501.0,87500.0,0.00058298]